[Event "Titled Tuesday Blitz February 15 Late 2022"]
[White "Tari, Aryan"]
[Black "Fishbein, Alexander"]
[WhiteFideId "1510045"]
[BlackFideId "2000377"]
[WhiteElo "2567"]
[BlackElo "2442"]
[Result "1-0"]
[Round "09"]
[TimeControl "180+1"]
[Date "2022.02.15"]
[WhiteClock "0:00:04"]
[BlackClock "0:00:02"]

1. c4 {[%clk 0:03:00]}  Nf6 {[%clk 0:02:59]} 2. g3 {[%clk 0:02:58]}  g6 {[%clk 0:02:59]} 3. Bg2 {[%clk 0:02:58]}  Bg7 {[%clk 0:02:59]} 4. d4 {[%clk 0:02:58]}  O-O {[%clk 0:02:59]} 5. Nc3 {[%clk 0:02:59]}  d6 {[%clk 0:02:58]} 6. Nf3 {[%clk 0:02:59]}  Nc6 {[%clk 0:02:58]} 7. O-O {[%clk 0:02:59]}  e5 {[%clk 0:02:58]} 8. d5 {[%clk 0:02:56]}  Nb8 {[%clk 0:02:57]} 9. e4 {[%clk 0:02:57]}  a5 {[%clk 0:02:57]} 10. Ne1 {[%clk 0:02:57]}  Na6 {[%clk 0:02:57]} 11. Nd3 {[%clk 0:02:55]}  Nd7 {[%clk 0:02:57]} 12. Be3 {[%clk 0:02:44]}  Ndc5 {[%clk 0:02:56]} 13. a3 {[%clk 0:02:24]}  Bd7 {[%clk 0:02:46]} 14. Nxc5 {[%clk 0:02:20]}  Nxc5 {[%clk 0:02:45]} 15. b4 {[%clk 0:02:20]}  axb4 {[%clk 0:02:45]} 16. axb4 {[%clk 0:02:20]}  Rxa1 {[%clk 0:02:45]} 17. Qxa1 {[%clk 0:02:21]}  Nb3 {[%clk 0:02:45]} 18. Qa7 {[%clk 0:02:19]}  Qa8 {[%clk 0:02:36]} 19. Qxa8 {[%clk 0:01:35]}  Rxa8 {[%clk 0:02:37]} 20. Rb1 {[%clk 0:01:12]}  Nd4 {[%clk 0:02:28]} 21. Bf1 {[%clk 0:01:10]}  f5 {[%clk 0:02:12]} 22. Nb5 {[%clk 0:01:11]}  fxe4 {[%clk 0:02:00]} 23. Nxc7 {[%clk 0:01:06]}  Rc8 {[%clk 0:01:52]} 24. Nb5 {[%clk 0:01:05]}  Bxb5 {[%clk 0:01:40]} 25. cxb5 {[%clk 0:01:06]}  Nf5 {[%clk 0:01:27]} 26. Bb6 {[%clk 0:00:51]}  Nd4 {[%clk 0:01:20]} 27. Ra1 {[%clk 0:00:45]}  Bh6 {[%clk 0:01:12]} 28. Bh3 {[%clk 0:00:42]}  Rf8 {[%clk 0:01:05]} 29. Be6+ {[%clk 0:00:31]}  Kg7 {[%clk 0:00:56]} 30. Ra7 {[%clk 0:00:30]}  e3 {[%clk 0:00:47]} 31. Rxb7+ {[%clk 0:00:29]}  Kf6 {[%clk 0:00:46]} 32. fxe3 {[%clk 0:00:26]}  Bxe3+ {[%clk 0:00:46]} 33. Kg2 {[%clk 0:00:27]}  Kg5 {[%clk 0:00:30]} 34. Rf7 {[%clk 0:00:25]}  Ra8 {[%clk 0:00:21]} 35. h4+ {[%clk 0:00:20]}  Kh6 {[%clk 0:00:19]} 36. g4 {[%clk 0:00:20]}  Ra2+ {[%clk 0:00:17]} 37. Kh3 {[%clk 0:00:19]}  g5 {[%clk 0:00:12]} 38. Bd8 {[%clk 0:00:18]}  Bf4 {[%clk 0:00:06]} 39. hxg5+ {[%clk 0:00:15]}  Bxg5 {[%clk 0:00:06]} 40. Bxg5+ {[%clk 0:00:10]}  Kxg5 {[%clk 0:00:06]} 41. b6 {[%clk 0:00:11]}  Rb2 {[%clk 0:00:04]} 42. b7 {[%clk 0:00:08]}  Rxb4 {[%clk 0:00:04]} 43. Rxh7 {[%clk 0:00:04]}  e4 {[%clk 0:00:05]} 44. Rg7+ {[%clk 0:00:03]}  Kf4 {[%clk 0:00:05]} 45. Rf7+ {[%clk 0:00:03]}  Ke5 {[%clk 0:00:05]} 46. g5 {[%clk 0:00:03]}  e3 {[%clk 0:00:05]} 47. Bg4 {[%clk 0:00:03]}  Rb3 {[%clk 0:00:05]} 48. Kh4 {[%clk 0:00:03]}  Kxd5 {[%clk 0:00:04]} 49. g6 {[%clk 0:00:02]}  Rb1 {[%clk 0:00:04]} 50. g7 {[%clk 0:00:02]}  Rh1+ {[%clk 0:00:04]} 51. Kg5 {[%clk 0:00:03]}  e2 {[%clk 0:00:03]} 52. g8=Q {[%clk 0:00:03]}  e1=Q {[%clk 0:00:04]} 53. Rf1+ {[%clk 0:00:02]}  Ne6+ {[%clk 0:00:03]} 54. Bxe6+ {[%clk 0:00:02]}  Qxe6 {[%clk 0:00:03]} 55. Rf5+ {[%clk 0:00:03]}  Kc6 {[%clk 0:00:02]} 56. Qxe6 {[%clk 0:00:04]} 1-0


[Site "https://www.chess.com"]

[Event "Titled Tuesday Blitz February 15 Late 2022"]
[White "Titichoca Daza, Daniel"]
[Black "Rustemov, Alexander"]
[WhiteFideId "3309550"]
[BlackFideId "4119002"]
[WhiteElo "1968"]
[BlackElo "2776"]
[Result "0-1"]
[Round "09"]
[TimeControl "180+1"]
[Date "2022.02.15"]
[WhiteClock "0:00:45"]
[BlackClock "0:00:31"]

1. e4 {[%clk 0:03:00]}  e6 {[%clk 0:02:59]} 2. d4 {[%clk 0:02:58]}  d5 {[%clk 0:02:59]} 3. Nc3 {[%clk 0:02:59]}  Bb4 {[%clk 0:02:59]} 4. e5 {[%clk 0:02:58]}  c5 {[%clk 0:02:59]} 5. Bd2 {[%clk 0:02:58]}  a6 {[%clk 0:02:41]} 6. Nce2 {[%clk 0:02:37]}  Bxd2+ {[%clk 0:02:36]} 7. Qxd2 {[%clk 0:02:38]}  Nc6 {[%clk 0:02:21]} 8. f4 {[%clk 0:02:37]}  Qb6 {[%clk 0:01:59]} 9. O-O-O {[%clk 0:02:35]}  c4 {[%clk 0:01:46]} 10. Nf3 {[%clk 0:02:31]}  Nge7 {[%clk 0:01:45]} 11. g3 {[%clk 0:01:56]}  Bd7 {[%clk 0:01:39]} 12. h3 {[%clk 0:01:52]}  Qc7 {[%clk 0:01:11]} 13. g4 {[%clk 0:01:51]}  b5 {[%clk 0:01:07]} 14. f5 {[%clk 0:01:51]}  exf5 {[%clk 0:01:00]} 15. Qg5 {[%clk 0:01:50]}  O-O {[%clk 0:00:50]} 16. Nf4 {[%clk 0:01:27]}  f6 {[%clk 0:00:45]} 17. exf6 {[%clk 0:01:25]}  Rxf6 {[%clk 0:00:45]} 18. Bg2 {[%clk 0:01:16]}  h6 {[%clk 0:00:39]} 19. Nxd5 {[%clk 0:00:50]}  Nxd5 {[%clk 0:00:37]} 20. Qh4 {[%clk 0:00:50]}  fxg4 {[%clk 0:00:32]} 21. hxg4 {[%clk 0:00:51]}  Qf4+ {[%clk 0:00:31]} 22. Kb1 {[%clk 0:00:51]}  Ne3 {[%clk 0:00:31]} 23. Rde1 {[%clk 0:00:45]}  Nxg2 {[%clk 0:00:31]} 0-1


[Site "https://www.chess.com"]

[Event "Titled Tuesday Blitz February 15 Late 2022"]
[White "Vine, Elzbieta"]
[Black "Kostiukov, Alexandr"]
[WhiteFideId "1119320"]
[BlackFideId "14108100"]
[WhiteElo "1851"]
[BlackElo "2202"]
[Result "0-1"]
[Round "09"]
[TimeControl "180+1"]
[Date "2022.02.16"]
[WhiteClock "0:00:01"]
[BlackClock "0:00:01"]

1. e4 {[%clk 0:03:00]}  c5 {[%clk 0:02:52]} 2. Nf3 {[%clk 0:02:56]}  g6 {[%clk 0:02:52]} 3. Nc3 {[%clk 0:02:48]}  Bg7 {[%clk 0:02:51]} 4. d3 {[%clk 0:02:44]}  Nc6 {[%clk 0:02:49]} 5. h4 {[%clk 0:02:41]}  h6 {[%clk 0:02:45]} 6. h5 {[%clk 0:02:40]}  g5 {[%clk 0:02:45]} 7. Bd2 {[%clk 0:02:34]}  e6 {[%clk 0:02:43]} 8. Qe2 {[%clk 0:02:32]}  Nge7 {[%clk 0:02:43]} 9. e5 {[%clk 0:02:27]}  g4 {[%clk 0:02:31]} 10. Nh4 {[%clk 0:02:19]}  Nxe5 {[%clk 0:02:31]} 11. f4 {[%clk 0:02:09]}  N5c6 {[%clk 0:02:20]} 12. Qxg4 {[%clk 0:02:05]}  Rg8 {[%clk 0:02:06]} 13. Qf3 {[%clk 0:01:54]}  Nd4 {[%clk 0:02:05]} 14. Qd1 {[%clk 0:01:45]}  d5 {[%clk 0:02:02]} 15. Ne2 {[%clk 0:01:43]}  Nxe2 {[%clk 0:01:56]} 16. Bxe2 {[%clk 0:01:39]}  Bxb2 {[%clk 0:01:56]} 17. Rb1 {[%clk 0:01:38]}  Bf6 {[%clk 0:01:56]} 18. f5 {[%clk 0:01:32]}  Bxh4+ {[%clk 0:01:53]} 19. Rxh4 {[%clk 0:01:30]}  Nxf5 {[%clk 0:01:54]} 20. Rg4 {[%clk 0:00:51]}  Rxg4 {[%clk 0:01:52]} 21. Bxg4 {[%clk 0:00:50]}  Qh4+ {[%clk 0:01:53]} 22. Kf1 {[%clk 0:00:47]}  Qf6 {[%clk 0:00:36]} 23. Bxf5 {[%clk 0:00:45]}  Qxf5+ {[%clk 0:00:34]} 24. Qf3 {[%clk 0:00:44]}  Qxf3+ {[%clk 0:00:17]} 25. gxf3 {[%clk 0:00:43]}  b6 {[%clk 0:00:15]} 26. Bxh6 {[%clk 0:00:42]}  Ba6 {[%clk 0:00:12]} 27. Bg7 {[%clk 0:00:42]}  f5 {[%clk 0:00:11]} 28. h6 {[%clk 0:00:41]}  Kf7 {[%clk 0:00:11]} 29. Kf2 {[%clk 0:00:40]}  Kg6 {[%clk 0:00:11]} 30. Rg1+ {[%clk 0:00:37]}  Kh7 {[%clk 0:00:11]} 31. Re1 {[%clk 0:00:35]}  Re8 {[%clk 0:00:11]} 32. Rg1 {[%clk 0:00:31]}  Bb5 {[%clk 0:00:10]} 33. Re1 {[%clk 0:00:22]}  Kg6 {[%clk 0:00:09]} 34. Rg1+ {[%clk 0:00:21]}  Kh7 {[%clk 0:00:09]} 35. Re1 {[%clk 0:00:21]}  Bc6 {[%clk 0:00:09]} 36. Re5 {[%clk 0:00:19]}  d4 {[%clk 0:00:08]} 37. Re1 {[%clk 0:00:14]}  Bd5 {[%clk 0:00:09]} 38. a3 {[%clk 0:00:14]}  Kg6 {[%clk 0:00:08]} 39. Rg1+ {[%clk 0:00:13]}  Kh7 {[%clk 0:00:08]} 40. Rh1 {[%clk 0:00:12]}  b5 {[%clk 0:00:08]} 41. Rh2 {[%clk 0:00:10]}  a6 {[%clk 0:00:08]} 42. Rh1 {[%clk 0:00:08]}  e5 {[%clk 0:00:09]} 43. Rh5 {[%clk 0:00:06]}  e4 {[%clk 0:00:06]} 44. fxe4 {[%clk 0:00:04]}  Ba2 {[%clk 0:00:02]} 45. Rxf5 {[%clk 0:00:03]}  Bb1 {[%clk 0:00:02]} 46. Rf7 {[%clk 0:00:01]}  Kg6 {[%clk 0:00:01]} 0-1


[Site "https://www.chess.com"]

[Event "Titled Tuesday Blitz February 15 Late 2022"]
[White "Vovk, Orest"]
[Black "Wagner, Dennis"]
[WhiteFideId "14113490"]
[BlackFideId "24650684"]
[WhiteElo "2203"]
[BlackElo "2355"]
[Result "1-0"]
[Round "09"]
[TimeControl "180+1"]
[Date "2022.02.15"]
[WhiteClock "0:00:08"]
[BlackClock "0:00:09"]

1. h4 {[%clk 0:03:00]}  e5 {[%clk 0:02:59]} 2. h5 {[%clk 0:02:57]}  d5 {[%clk 0:02:59]} 3. h6 {[%clk 0:02:57]}  Nxh6 {[%clk 0:02:58]} 4. d4 {[%clk 0:02:58]}  exd4 {[%clk 0:02:49]} 5. Bxh6 {[%clk 0:02:58]}  gxh6 {[%clk 0:02:49]} 6. Qxd4 {[%clk 0:02:58]}  Rg8 {[%clk 0:02:50]} 7. Nc3 {[%clk 0:02:59]}  Bg7 {[%clk 0:02:44]} 8. Qh4 {[%clk 0:02:57]}  d4 {[%clk 0:02:34]} 9. Qxd8+ {[%clk 0:02:52]}  Kxd8 {[%clk 0:02:35]} 10. O-O-O {[%clk 0:02:52]}  Bd7 {[%clk 0:02:19]} 11. Ne4 {[%clk 0:02:38]}  Na6 {[%clk 0:02:15]} 12. Nf3 {[%clk 0:02:33]}  c5 {[%clk 0:02:07]} 13. Rh5 {[%clk 0:02:28]}  b6 {[%clk 0:01:42]} 14. e3 {[%clk 0:02:28]}  Nb4 {[%clk 0:01:28]} 15. exd4 {[%clk 0:02:25]}  cxd4 {[%clk 0:01:22]} 16. a3 {[%clk 0:02:09]}  Nc6 {[%clk 0:01:19]} 17. Bb5 {[%clk 0:02:07]}  Kc7 {[%clk 0:01:17]} 18. Ng3 {[%clk 0:01:54]}  Rad8 {[%clk 0:01:11]} 19. Nf5 {[%clk 0:01:46]}  Bf8 {[%clk 0:00:49]} 20. g3 {[%clk 0:01:23]}  Rg4 {[%clk 0:00:43]} 21. Nxh6 {[%clk 0:01:16]}  Bxh6+ {[%clk 0:00:17]} 22. Rxh6 {[%clk 0:01:15]}  Re4 {[%clk 0:00:14]} 23. Rxh7 {[%clk 0:01:07]}  Ne5 {[%clk 0:00:14]} 24. Nxe5 {[%clk 0:00:58]}  Bxb5 {[%clk 0:00:13]} 25. Rxf7+ {[%clk 0:00:54]}  Kd6 {[%clk 0:00:12]} 26. f4 {[%clk 0:00:46]}  Rc8 {[%clk 0:00:12]} 27. Kb1 {[%clk 0:00:41]}  Kd5 {[%clk 0:00:10]} 28. Rxa7 {[%clk 0:00:39]}  Re2 {[%clk 0:00:10]} 29. c3 {[%clk 0:00:31]}  d3 {[%clk 0:00:05]} 30. Nxd3 {[%clk 0:00:28]}  Ke4 {[%clk 0:00:05]} 31. Re7+ {[%clk 0:00:24]}  Kf3 {[%clk 0:00:04]} 32. Rxe2 {[%clk 0:00:13]}  Kxe2 {[%clk 0:00:05]} 33. Kc2 {[%clk 0:00:13]}  Rh8 {[%clk 0:00:02]} 34. Ne5 {[%clk 0:00:11]}  Ke3 {[%clk 0:00:01]} 35. c4 {[%clk 0:00:09]}  Rh2+ {[%clk 0:00:02]} 36. Kc3 {[%clk 0:00:08]}  Ba4 {[%clk 0:00:02]} 37. Rd3+ {[%clk 0:00:08]}  Ke4 {[%clk 0:00:02]} 38. b3 {[%clk 0:00:09]}  Be8 {[%clk 0:00:02]} 39. b4 {[%clk 0:00:08]}  Rh1 {[%clk 0:00:02]} 40. c5 {[%clk 0:00:08]}  bxc5 {[%clk 0:00:02]} 41. bxc5 {[%clk 0:00:08]}  Rc1+ {[%clk 0:00:03]} 42. Kd2 {[%clk 0:00:08]}  Rxc5 {[%clk 0:00:03]} 43. Re3+ {[%clk 0:00:07]}  Kd4 {[%clk 0:00:03]} 44. Rd3+ {[%clk 0:00:07]}  Ke4 {[%clk 0:00:03]} 45. Rc3 {[%clk 0:00:07]}  Rd5+ {[%clk 0:00:03]} 46. Ke1 {[%clk 0:00:06]}  Ra5 {[%clk 0:00:04]} 47. Kf2 {[%clk 0:00:06]}  Kf5 {[%clk 0:00:03]} 48. Re3 {[%clk 0:00:06]}  Ba4 {[%clk 0:00:03]} 49. Kf3 {[%clk 0:00:06]}  Bd1+ {[%clk 0:00:03]} 50. Kf2 {[%clk 0:00:06]}  Rc5 {[%clk 0:00:03]} 51. Rd3 {[%clk 0:00:04]}  Rc2+ {[%clk 0:00:03]} 52. Ke3 {[%clk 0:00:05]}  Re2+ {[%clk 0:00:03]} 53. Kd4 {[%clk 0:00:04]}  Re4+ {[%clk 0:00:03]} 54. Kd5 {[%clk 0:00:04]}  Ba4 {[%clk 0:00:04]} 55. Kd6 {[%clk 0:00:04]}  Re1 {[%clk 0:00:04]} 56. Rd4 {[%clk 0:00:04]}  Ra1 {[%clk 0:00:02]} 57. g4+ {[%clk 0:00:04]}  Kf6 {[%clk 0:00:03]} 58. Rxa4 {[%clk 0:00:05]}  Rd1+ {[%clk 0:00:02]} 59. Kc5 {[%clk 0:00:05]}  Ke6 {[%clk 0:00:02]} 60. Rc4 {[%clk 0:00:05]}  Rd5+ {[%clk 0:00:03]} 61. Kb4 {[%clk 0:00:05]}  Rd1 {[%clk 0:00:04]} 62. Nc6 {[%clk 0:00:05]}  Kd5 {[%clk 0:00:04]} 63. Na5 {[%clk 0:00:05]}  Rb1+ {[%clk 0:00:04]} 64. Nb3 {[%clk 0:00:05]}  Rg1 {[%clk 0:00:03]} 65. f5 {[%clk 0:00:06]}  Rg2 {[%clk 0:00:03]} 66. a4 {[%clk 0:00:06]}  Kd6 {[%clk 0:00:04]} 67. a5 {[%clk 0:00:06]}  Rh2 {[%clk 0:00:04]} 68. a6 {[%clk 0:00:06]}  Rh7 {[%clk 0:00:05]} 69. Kb5 {[%clk 0:00:06]}  Kd5 {[%clk 0:00:05]} 70. Rc5+ {[%clk 0:00:06]}  Kd6 {[%clk 0:00:05]} 71. Kb6 {[%clk 0:00:07]}  Rh8 {[%clk 0:00:05]} 72. f6 {[%clk 0:00:07]}  Kd7 {[%clk 0:00:05]} 73. Rc7+ {[%clk 0:00:07]}  Kd6 {[%clk 0:00:05]} 74. f7 {[%clk 0:00:08]}  Rh3 {[%clk 0:00:05]} 75. Nc5 {[%clk 0:00:07]}  Rh1 {[%clk 0:00:05]} 76. Rd7+ {[%clk 0:00:07]}  Ke5 {[%clk 0:00:05]} 77. a7 {[%clk 0:00:08]}  Rb1+ {[%clk 0:00:06]} 78. Kc6 {[%clk 0:00:08]}  Rh1 {[%clk 0:00:06]} 79. f8=Q {[%clk 0:00:07]}  Rh6+ {[%clk 0:00:05]} 80. Qd6+ {[%clk 0:00:07]}  Rxd6+ {[%clk 0:00:03]} 81. Rxd6 {[%clk 0:00:08]}  Kf4 {[%clk 0:00:04]} 82. a8=Q {[%clk 0:00:09]}  Kg5 {[%clk 0:00:05]} 83. Qd8+ {[%clk 0:00:08]}  Kf4 {[%clk 0:00:05]} 84. g5 {[%clk 0:00:07]}  Kg3 {[%clk 0:00:06]} 85. g6 {[%clk 0:00:08]}  Kh3 {[%clk 0:00:07]} 86. g7 {[%clk 0:00:08]}  Kg4 {[%clk 0:00:08]} 87. g8=Q+ {[%clk 0:00:08]}  Kh3 {[%clk 0:00:09]} 88. Qd7+ {[%clk 0:00:07]}  Kh2 {[%clk 0:00:09]} 89. Qdh7# {[%clk 0:00:08]} 1-0


[Site "https://www.chess.com"]

[Event "Titled Tuesday Blitz February 15 Late 2022"]
[White "Xiong, Jeffery"]
[Black "Lin, Dachey"]
[WhiteFideId "2047640"]
[BlackFideId "2029650"]
[WhiteElo "2727"]
[BlackElo "2776"]
[Result "1/2-1/2"]
[Round "09"]
[TimeControl "180+1"]
[Date "2022.02.15"]
[WhiteClock "0:00:29"]
[BlackClock "0:00:38"]

1. d4 {[%clk 0:03:00]}  g6 {[%clk 0:03:00]} 2. Nf3 {[%clk 0:03:00]}  Bg7 {[%clk 0:03:00]} 3. e4 {[%clk 0:03:00]}  c6 {[%clk 0:03:00]} 4. c4 {[%clk 0:02:59]}  d5 {[%clk 0:03:00]} 5. cxd5 {[%clk 0:03:00]}  cxd5 {[%clk 0:03:01]} 6. e5 {[%clk 0:03:00]}  Nc6 {[%clk 0:03:01]} 7. Bb5 {[%clk 0:03:00]}  Qb6 {[%clk 0:02:41]} 8. Nc3 {[%clk 0:02:59]}  e6 {[%clk 0:02:40]} 9. Bxc6+ {[%clk 0:02:40]}  Qxc6 {[%clk 0:02:37]} 10. O-O {[%clk 0:02:41]}  Ne7 {[%clk 0:02:36]} 11. h4 {[%clk 0:02:32]}  h5 {[%clk 0:02:32]} 12. Bg5 {[%clk 0:02:30]}  Nf5 {[%clk 0:02:32]} 13. Rc1 {[%clk 0:02:30]}  Qb6 {[%clk 0:02:22]} 14. Na4 {[%clk 0:02:20]}  Qb5 {[%clk 0:02:11]} 15. Rc7 {[%clk 0:02:18]}  O-O {[%clk 0:02:08]} 16. Bf6 {[%clk 0:01:45]}  b6 {[%clk 0:01:40]} 17. Bxg7 {[%clk 0:01:19]}  Kxg7 {[%clk 0:01:40]} 18. Re1 {[%clk 0:01:05]}  Ba6 {[%clk 0:01:37]} 19. b3 {[%clk 0:00:56]}  Rfc8 {[%clk 0:01:30]} 20. Qc1 {[%clk 0:00:56]}  Qe8 {[%clk 0:01:30]} 21. Qc2 {[%clk 0:00:41]}  Qe7 {[%clk 0:01:14]} 22. Rxe7 {[%clk 0:00:29]}  Rxc2 {[%clk 0:01:14]} 23. Rd7 {[%clk 0:00:29]}  Bb5 {[%clk 0:00:54]} 24. Rb7 {[%clk 0:00:29]}  Ba6 {[%clk 0:00:37]} 25. Rd7 {[%clk 0:00:29]}  Bb5 {[%clk 0:00:38]} 26. Rb7 {[%clk 0:00:29]}  Ba6 {[%clk 0:00:38]} 27. Rd7 {[%clk 0:00:29]} 1/2-1/2


[Site "https://www.chess.com"]

[Event "Titled Tuesday Blitz February 15 Late 2022"]
[White "Yedidia, Daniel"]
[Black "Mikhailov, Viacheslav"]
[WhiteFideId "30905907"]
[BlackFideId "4187369"]
[WhiteElo "2496"]
[BlackElo "2679"]
[Result "0-1"]
[Round "09"]
[TimeControl "180+1"]
[Date "2022.02.16"]
[WhiteClock "0:00:32"]
[BlackClock "0:01:30"]

1. d4 {[%clk 0:03:00]}  Nf6 {[%clk 0:02:58]} 2. c4 {[%clk 0:03:00]}  g6 {[%clk 0:02:58]} 3. Nc3 {[%clk 0:02:59]}  Bg7 {[%clk 0:02:59]} 4. e4 {[%clk 0:02:59]}  O-O {[%clk 0:02:59]} 5. Nf3 {[%clk 0:02:58]}  d6 {[%clk 0:03:00]} 6. Be2 {[%clk 0:02:58]}  Bg4 {[%clk 0:02:58]} 7. Be3 {[%clk 0:02:57]}  Nc6 {[%clk 0:02:57]} 8. d5 {[%clk 0:02:57]}  Bxf3 {[%clk 0:02:57]} 9. Bxf3 {[%clk 0:02:57]}  Ne5 {[%clk 0:02:58]} 10. Be2 {[%clk 0:02:58]}  c6 {[%clk 0:02:59]} 11. f4 {[%clk 0:02:52]}  Ned7 {[%clk 0:02:59]} 12. O-O {[%clk 0:02:47]}  cxd5 {[%clk 0:02:58]} 13. cxd5 {[%clk 0:02:41]}  a6 {[%clk 0:02:59]} 14. Rc1 {[%clk 0:02:40]}  Rc8 {[%clk 0:02:59]} 15. Bf3 {[%clk 0:02:38]}  Qa5 {[%clk 0:02:59]} 16. Qd2 {[%clk 0:02:32]}  b5 {[%clk 0:02:58]} 17. a3 {[%clk 0:02:26]}  h5 {[%clk 0:02:58]} 18. Qf2 {[%clk 0:02:19]}  Ng4 {[%clk 0:02:55]} 19. Bxg4 {[%clk 0:02:16]}  hxg4 {[%clk 0:02:56]} 20. Bd4 {[%clk 0:02:13]}  Bxd4 {[%clk 0:02:54]} 21. Qxd4 {[%clk 0:02:12]}  Qb6 {[%clk 0:02:55]} 22. Qxb6 {[%clk 0:02:10]}  Nxb6 {[%clk 0:02:55]} 23. b3 {[%clk 0:02:09]}  Rc5 {[%clk 0:02:47]} 24. Ne2 {[%clk 0:02:07]}  Rfc8 {[%clk 0:02:48]} 25. Rxc5 {[%clk 0:02:03]}  Rxc5 {[%clk 0:02:49]} 26. Rc1 {[%clk 0:02:02]}  Rxc1+ {[%clk 0:02:48]} 27. Nxc1 {[%clk 0:02:03]}  f5 {[%clk 0:02:48]} 28. Kf2 {[%clk 0:01:56]}  fxe4 {[%clk 0:02:47]} 29. Ke3 {[%clk 0:01:56]}  Nxd5+ {[%clk 0:02:46]} 30. Kxe4 {[%clk 0:01:56]}  e6 {[%clk 0:02:37]} 31. Nd3 {[%clk 0:01:48]}  Kf7 {[%clk 0:02:37]} 32. Nf2 {[%clk 0:01:47]}  Nf6+ {[%clk 0:02:31]} 33. Kd4 {[%clk 0:01:43]}  Ke7 {[%clk 0:02:31]} 34. Nd3 {[%clk 0:01:34]}  Kd7 {[%clk 0:02:28]} 35. Nb4 {[%clk 0:01:30]}  a5 {[%clk 0:02:27]} 36. Nd3 {[%clk 0:01:28]}  Kc6 {[%clk 0:02:26]} 37. Nf2 {[%clk 0:01:21]}  Nd5 {[%clk 0:01:57]} 38. g3 {[%clk 0:01:18]}  Nf6 {[%clk 0:01:57]} 39. Nd3 {[%clk 0:01:11]}  Nd7 {[%clk 0:01:55]} 40. b4 {[%clk 0:01:04]}  axb4 {[%clk 0:01:47]} 41. Nxb4+ {[%clk 0:01:02]}  Kb6 {[%clk 0:01:48]} 42. Nd3 {[%clk 0:01:00]}  Ka5 {[%clk 0:01:44]} 43. Kc3 {[%clk 0:00:59]}  Ka4 {[%clk 0:01:35]} 44. Kb2 {[%clk 0:00:57]}  Nb6 {[%clk 0:01:33]} 45. Nf2 {[%clk 0:00:54]}  Nc4+ {[%clk 0:01:33]} 46. Kc3 {[%clk 0:00:53]}  Nxa3 {[%clk 0:01:30]} 47. Nxg4 {[%clk 0:00:53]}  b4+ {[%clk 0:01:30]} 48. Kb2 {[%clk 0:00:52]}  Nc4+ {[%clk 0:01:31]} 49. Kb1 {[%clk 0:00:52]}  b3 {[%clk 0:01:31]} 50. Nf2 {[%clk 0:00:49]}  Ka3 {[%clk 0:01:31]} 51. Nd3 {[%clk 0:00:46]}  e5 {[%clk 0:01:30]} 52. fxe5 {[%clk 0:00:35]}  dxe5 {[%clk 0:01:31]} 53. Kc1 {[%clk 0:00:35]}  e4 {[%clk 0:01:30]} 54. Nc5 {[%clk 0:00:32]}  b2+ {[%clk 0:01:30]} 55. Kc2 {[%clk 0:00:32]}  Ka2 {[%clk 0:01:30]} 56. Nxe4 {[%clk 0:00:31]}  b1=Q+ {[%clk 0:01:30]} 57. Kc3 {[%clk 0:00:32]}  Qxe4 {[%clk 0:01:30]} 0-1


[Site "https://www.chess.com"]

[Event "Titled Tuesday Blitz February 15 Late 2022"]
[White "Yushko, Olga"]
[Black "Tasev, Dejan"]
[WhiteFideId "14114500"]
[BlackFideId "936618"]
[WhiteElo "2028"]
[BlackElo "2253"]
[Result "0-1"]
[Round "09"]
[TimeControl "180+1"]
[Date "2022.02.16"]
[WhiteClock "0:00:02"]
[BlackClock "0:00:13"]

1. d4 {[%clk 0:02:53]}  Nf6 {[%clk 0:02:59]} 2. c4 {[%clk 0:02:54]}  e6 {[%clk 0:02:59]} 3. Nc3 {[%clk 0:02:53]}  d5 {[%clk 0:02:59]} 4. cxd5 {[%clk 0:02:53]}  exd5 {[%clk 0:02:59]} 5. Nf3 {[%clk 0:02:54]}  c6 {[%clk 0:02:59]} 6. Bg5 {[%clk 0:02:54]}  Be7 {[%clk 0:02:58]} 7. e3 {[%clk 0:02:53]}  Nbd7 {[%clk 0:02:57]} 8. Bd3 {[%clk 0:02:54]}  O-O {[%clk 0:02:56]} 9. O-O {[%clk 0:02:53]}  Re8 {[%clk 0:02:56]} 10. Rc1 {[%clk 0:02:53]}  Nf8 {[%clk 0:02:55]} 11. a3 {[%clk 0:02:51]}  g6 {[%clk 0:02:51]} 12. b4 {[%clk 0:02:45]}  b5 {[%clk 0:02:39]} 13. Nb1 {[%clk 0:02:35]}  Bb7 {[%clk 0:02:35]} 14. Nbd2 {[%clk 0:02:35]}  a5 {[%clk 0:02:34]} 15. Ne5 {[%clk 0:02:27]}  Qb6 {[%clk 0:02:22]} 16. Nb3 {[%clk 0:02:22]}  axb4 {[%clk 0:02:22]} 17. axb4 {[%clk 0:02:22]}  N6d7 {[%clk 0:02:04]} 18. Nxd7 {[%clk 0:02:03]}  Nxd7 {[%clk 0:02:03]} 19. Bxe7 {[%clk 0:02:00]}  Rxe7 {[%clk 0:02:03]} 20. Nc5 {[%clk 0:02:00]}  Nxc5 {[%clk 0:02:02]} 21. dxc5 {[%clk 0:02:00]}  Qc7 {[%clk 0:01:55]} 22. Qg4 {[%clk 0:01:58]}  Qe5 {[%clk 0:01:33]} 23. h3 {[%clk 0:01:46]}  Bc8 {[%clk 0:01:28]} 24. Qf3 {[%clk 0:01:42]}  Rea7 {[%clk 0:01:22]} 25. Rfd1 {[%clk 0:01:08]}  Ra2 {[%clk 0:01:13]} 26. Bf1 {[%clk 0:01:04]}  Bf5 {[%clk 0:01:05]} 27. Rd4 {[%clk 0:00:55]}  Be4 {[%clk 0:00:59]} 28. Qg4 {[%clk 0:00:52]}  Bf5 {[%clk 0:00:47]} 29. Qf3 {[%clk 0:00:47]}  Rb2 {[%clk 0:00:46]} 30. Rcd1 {[%clk 0:00:40]}  Raa2 {[%clk 0:00:45]} 31. Bd3 {[%clk 0:00:17]}  Be6 {[%clk 0:00:26]} 32. Rf1 {[%clk 0:00:11]}  Ra4 {[%clk 0:00:23]} 33. Rd1 {[%clk 0:00:08]}  Rbxb4 {[%clk 0:00:22]} 34. Rxb4 {[%clk 0:00:09]}  Rxb4 {[%clk 0:00:22]} 35. Be2 {[%clk 0:00:09]}  Ra4 {[%clk 0:00:22]} 36. Bd3 {[%clk 0:00:09]}  Ra1 {[%clk 0:00:22]} 37. Rxa1 {[%clk 0:00:09]}  Qxa1+ {[%clk 0:00:22]} 38. Kh2 {[%clk 0:00:10]}  Qe5+ {[%clk 0:00:22]} 39. g3 {[%clk 0:00:10]}  b4 {[%clk 0:00:22]} 40. Qd1 {[%clk 0:00:10]}  Qc3 {[%clk 0:00:22]} 41. Bc2 {[%clk 0:00:10]}  Qxc5 {[%clk 0:00:21]} 42. Bb3 {[%clk 0:00:10]}  Qc3 {[%clk 0:00:21]} 43. Ba4 {[%clk 0:00:08]}  c5 {[%clk 0:00:20]} 44. Qe2 {[%clk 0:00:08]}  c4 {[%clk 0:00:20]} 45. Qf3 {[%clk 0:00:07]}  Kg7 {[%clk 0:00:20]} 46. Qf4 {[%clk 0:00:08]}  Qf6 {[%clk 0:00:20]} 47. Qc7 {[%clk 0:00:07]}  Qxf2+ {[%clk 0:00:20]} 48. Kh1 {[%clk 0:00:07]}  Qxe3 {[%clk 0:00:19]} 49. Qb8 {[%clk 0:00:06]}  Qe4+ {[%clk 0:00:18]} 50. Kh2 {[%clk 0:00:05]}  b3 {[%clk 0:00:18]} 51. Be8 {[%clk 0:00:03]}  Qe2+ {[%clk 0:00:17]} 52. Kh1 {[%clk 0:00:03]}  d4 {[%clk 0:00:18]} 53. Qd6 {[%clk 0:00:03]}  Qf3+ {[%clk 0:00:17]} 54. Kh2 {[%clk 0:00:03]}  Bd5 {[%clk 0:00:17]} 55. Qe5+ {[%clk 0:00:02]}  Kg8 {[%clk 0:00:17]} 56. Bxf7+ {[%clk 0:00:02]}  Kxf7 {[%clk 0:00:15]} 57. Qc7+ {[%clk 0:00:02]}  Kf6 {[%clk 0:00:14]} 58. Qd8+ {[%clk 0:00:02]}  Ke5 {[%clk 0:00:13]} 59. Qe8+ {[%clk 0:00:02]}  Kf5 {[%clk 0:00:12]} 60. Qf8+ {[%clk 0:00:03]}  Ke4 {[%clk 0:00:13]} 61. Qe7+ {[%clk 0:00:03]}  Kd3 {[%clk 0:00:13]} 62. Qe1 {[%clk 0:00:02]}  Qg2# {[%clk 0:00:13]} 0-1


[Site "https://www.chess.com"]